fUSD/lending_fUSD_20250206
["ID","MTS","AMOUNT","RATE_DAILY","PERIOD"]
[351842580,1738813838506,-300.0,0.00018709,2]
[351842582,1738813838515,-638.74,0.0001871,30]
[351842584,1738813838524,-200.0,0.00018916,2]
[351842586,1738813838534,-371.87,0.00018926,2]
[351842588,1738813838543,-369.46,0.00018931,2]
[351842590,1738813838552,-370.24,0.00018939,2]
[351842592,1738813838561,-371.16,0.0001895,2]
[351842594,1738813838570,-370.04,0.00018971,2]
[351842596,1738813838580,-700.0,0.00019,2]
[351842598,1738813838589,-375.56,0.00019008,2]
[351842600,1738813838599,-372.74,0.00019008,2]
[351842602,1738813838607,-374.45,0.00019009,2]
[351842604,1738813838616,-378.88,0.00019009,2]
[351842606,1738813838626,-368.67,0.00019009,2]
[351842608,1738813838635,-375.36,0.00019009,2]
[351842609,1738813838644,-368.19,0.00019009,2]
[351842610,1738813838653,-378.59,0.00019009,2]
[351842611,1738813838662,-377.53,0.00019009,2]
[351842612,1738813838671,-378.84,0.00019009,2]
[351842613,1738813838681,-371.52,0.00019009,2]
[351842614,1738813838690,-319.07,0.00019054,2]
[351842615,1738813838700,-150.0,0.00019178,2]
[351842616,1738813838709,-200.0,0.00019183,2]
[351842617,1738813838718,-400.0,0.000192,7]
[351842618,1738813838727,-376.39,0.00019214,2]
[351842619,1738813838737,-378.37,0.0001923,2]
[351842620,1738813838746,-377.79,0.00019255,2]
[351842621,1738813838755,-371.12,0.00019293,2]
[351842622,1738813838763,-800.0,0.000193,7]
[351842623,1738813838773,-371.07,0.00019353,2]
[351842624,1738813838782,-1200.0,0.000194,7]
[351842625,1738813838791,-377.29,0.00019442,2]
[351842626,1738813838799,-1600.0,0.000195,7]
[351842628,1738813838808,-380.13,0.00019578,2]
[351842630,1738813838817,-2000.0,0.000196,7]
[351842632,1738813838826,-150.0,0.00019683,2]
[351842634,1738813838837,-3000.0,0.000197,2]
[351842636,1738813838845,-400.0,0.000197,7]
[351842638,1738813838854,-372.12,0.00019736,2]
[351842640,1738813838864,-381.29,0.00019746,2]
[351842641,1738813838873,-376.5,0.00019759,2]
[351842643,1738813838882,-376.52,0.00019777,2]
[351842645,1738813838891,-161.32,0.0001979,2]
[351842647,1738813838900,-400.0,0.000198,7]
[351842649,1738813838908,-367.78,0.00019803,2]
[351842651,1738813838917,-899.411,0.00019803,2]
[351842653,1738813838926,-380.53,0.00019838,2]
[351842655,1738813838935,-1000.0,0.00019842,2]
[351842657,1738813838944,-374.62,0.00019888,2]
[351842659,1738813838954,-400.0,0.000199,7]
[351842661,1738813838963,-374.67,0.00019959,2]
[351842663,1738813838972,-890.63856709,0.0002,2]
[351842665,1738813838981,-1000.0,0.0002,2]
[351842667,1738813838990,-500.0,0.00020037,2]
[351842670,1738813839002,-1738.15143096,0.00020096,2]
[351842672,1738813839012,-1000.0,0.0002018,20]
[351842674,1738813839020,-1000.0,0.0002018,30]
[351842676,1738813839030,-1019.34,0.0002018,60]
[351842678,1738813839038,-150.0,0.00020187,2]
[351842680,1738813839048,-1908.36619097,0.00020189,5]
[351842682,1738813839057,-250483.73035672,0.0002019,30]
[351842684,1738813839066,-22858.2136448,0.0002019,2]
[351842686,1738813839074,-1150.80146767,0.00020194,10]
[351842688,1738813839084,-1000.0,0.00020194,2]
[351842690,1738813839093,-333.4934,0.00020194,2]
[351842691,1738813839105,-1000.0,0.00020194,2]
[351842694,1738813839114,-1000.0,0.00020194,2]
[351842696,1738813839124,-2006.4244,0.00020194,2]
[351842698,1738813839134,-500.0,0.00020194,2]
[351842699,1738813839143,-772.0,0.00020195,2]
[351842702,1738813839152,-1554.08876,0.00020195,2]
[351842704,1738813839162,-1061.92,0.00020195,2]
[351842705,1738813839172,-239.65741907,0.00020196,2]
[351842707,1738813839182,-156.0163774,0.00020196,2]
[351842709,1738813839193,-55102.24729813,0.00020196,2]
[351842711,1738813839202,-278.778117,0.00020196,2]
[351842714,1738813839212,-278.778117,0.00020196,2]
[351842715,1738813839221,-278.778117,0.00020196,2]
[351842718,1738813839231,-3750.815204,0.00020196,2]
[351842720,1738813839241,-3750.815204,0.00020196,2]
[351842721,1738813839250,-3750.815204,0.00020196,2]
[351842723,1738813839259,-278.778117,0.00020196,2]
[351842725,1738813839268,-278.778117,0.00020196,2]
[351842727,1738813839278,-278.778117,0.00020196,2]
[351842729,1738813839287,-3750.815204,0.00020196,2]
[351842731,1738813839296,-3750.815204,0.00020196,2]
[351842733,1738813839305,-3750.815204,0.00020196,2]
[351842735,1738813839315,-3456416.99359221,0.00020196,30]
[351842737,1738813839324,-324.22351497,0.00020196,120]
[351842739,1738813839333,-1961.23099271,0.00020196,5]
[351842741,1738813839343,-695.6588482,0.00020196,10]
[351842743,1738813839352,-439.53618509,0.00020196,30]
[351842745,1738813839361,-1249548.89485771,0.00020196,30]
[351842747,1738813839375,-20780.54390345,0.00020196,30]
[351842750,1738813839386,-14514.10114541,0.00020196,30]
[351842752,1738813839398,-12893.8938511,0.00020196,30]
[351842807,1738813839902,-468.19256648,0.00020196,30]
[351842809,1738813839913,-486.835,0.00020196,30]
[351842811,1738813839924,-12210.74810465,0.00020196,30]
[351842827,1738813840060,-1759.8369796,0.00020196,30]
[351842834,1738813840120,-310.5,0.00020196,30]
[351842841,1738813840178,-3563.4052644,0.00020196,30]
[351842843,1738813840191,-321.2614063,0.00020196,30]
[351842845,1738813840202,-3419.99457149,0.00020196,30]
[351843121,1738813842943,-328.55177811,0.00020196,2]
[351843134,1738813843055,-262.44822189,0.00020196,2]
[351843136,1738813843066,-793.62008107,0.00020196,30]
[351843138,1738813843077,-4323.49692516,0.00020196,30]
[351843415,1738813845976,-3305.96087413,0.00020196,30]
[351843417,1738813845988,-1719.53994675,0.00020196,30]
[351843423,1738813846033,-118713.54,0.00020196,30]
[351844288,1738814183861,2179.13,0.0002,120]
[351844290,1738814487662,25021.0,0.0002,120]
[351844296,1738814724863,500.0,0.0002,120]
[351844297,1738814734383,500.0,0.0002,120]
[351844298,1738814743704,500.0,0.0002,120]
[351844299,1738814757675,500.0,0.0002,120]
[351844300,1738814773093,500.0,0.0002,120]
[351844320,1738815032067,-200.0,9.932e-05,2]
[351844321,1738815032076,-849.05504559,9.934e-05,2]
[351844322,1738815032088,-6943.557322,9.934e-05,2]
[351844323,1738815032121,-343.90650373,9.934e-05,2]
[351844324,1738815032176,-4648.49999999,9.934e-05,2]
[351844325,1738815032189,-287.83754999,9.934e-05,2]
[351844326,1738815032232,-774.09765719,9.934e-05,2]
[351844327,1738815032287,-250.22877249,9.934e-05,2]
[351844328,1738815032301,-344.40721085,9.934e-05,2]
[351844329,1738815032312,-626.0,9.934e-05,2]
[351844330,1738815032348,-5200.0,9.934e-05,2]
[351844331,1738815032359,-3105.8066448,9.934e-05,2]
[351844332,1738815032402,-59653.27482873,9.934e-05,2]
[351844333,1738815032412,-14339.33964216,9.936e-05,2]
[351844334,1738815032422,-1979.58421346,9.936e-05,2]
[351844335,1738815032431,-1979.58421346,9.936e-05,2]
[351844336,1738815032440,-14339.33964215,9.942e-05,2]
[351844337,1738815032450,-11405.38016978,9.945e-05,2]
[351844338,1738815032460,-83026.67153536,9.945e-05,2]
[351844339,1738815032470,-11405.38016978,9.945e-05,2]
[351844340,1738815032479,-3937.52151847,9.951e-05,2]
[351844341,1738815032489,-11405.38016978,9.957e-05,2]
[351844342,1738815032499,-200.0,9.959e-05,2]
[351844344,1738815032509,-83026.67153536,9.96e-05,2]
[351844346,1738815032519,-1979.58421346,9.961e-05,2]
[351844348,1738815032531,-3937.52151847,9.966e-05,2]
[351844350,1738815032541,-83026.67153536,9.969e-05,2]
[351844352,1738815032550,-3937.52151847,9.975e-05,2]
[351844354,1738815032559,-11405.38016978,9.977e-05,2]
[351844356,1738815032569,-14339.33964216,9.978e-05,2]
[351844358,1738815032578,-14339.33964215,9.979e-05,2]
[351844360,1738815032588,-200.0,9.983e-05,2]
[351844362,1738815032597,-1979.58421346,9.987e-05,2]
[351844364,1738815032609,-3937.52151847,9.987e-05,2]
[351844366,1738815032618,-14339.33964216,9.99e-05,2]
[351844368,1738815032628,-14339.33964215,9.991e-05,2]
[351844370,1738815032637,-267.67259705,9.995e-05,2]
[351844372,1738815032648,-9011.71007065,9.995e-05,2]
[351844375,1738815032659,-5059.95697445,9.995e-05,2]
[351844376,1738815032668,-200.0,9.996e-05,2]
[351844378,1738815032677,-14339.33964216,9.997e-05,2]
[351844380,1738815032687,-315.19,0.00010137,2]
[351844382,1738815032696,-150.0,0.0001576,2]
[351844384,1738815032706,-315.19,0.00016813,2]
[351844386,1738815032715,-1007.0,0.00017,2]
[351844388,1738815032724,-287.16,0.00017301,2]
[351844390,1738815032733,-742.21416783,0.00018,2]
[351844392,1738815032744,-500.0,0.00018753,2]
[351844393,1738815032753,-200.0,0.0001876,2]
[351844395,1738815032762,-4728.7248318,0.00018883,2]
[351844448,1738815038014,-940.36664087,0.00018883,2]
[351844449,1738815038030,-5200.0,0.00018883,2]
[351844450,1738815038071,-13030.90852733,0.00018883,2]
[351844451,1738815038081,-1500.0,0.0001893,2]
[351844452,1738815038091,-1244.77,0.00018947,2]
[351844453,1738815038101,-200.0,0.00018973,2]
[351844454,1738815038112,-606.8,0.00019001,30]
[351844455,1738815038122,-698.41,0.00019061,2]
[351844456,1738815038132,-286.21,0.00019083,2]
[351844457,1738815038142,-150.0,0.00019178,2]
[351844458,1738815038152,-1000.0,0.00019196,2]
[351844459,1738815038162,-150.0,0.00019399,2]
[351844460,1738815038173,-900.0,0.000194,7]
[351844461,1738815038183,-380.92,0.000194,2]
[351844462,1738815038193,-375.04,0.000194,2]
[351844463,1738815038203,-379.75,0.000194,2]
[351844464,1738815038214,-373.86,0.000194,2]
[351844465,1738815038223,-382.05,0.000194,2]
[351844466,1738815038233,-375.11,0.000194,2]
[351844467,1738815038243,-378.42,0.000194,2]
[351844468,1738815038253,-380.39,0.000194,2]
[351844469,1738815038263,-368.98,0.000194,2]
[351844470,1738815038279,-375.76,0.000194,2]
[351844471,1738815038289,-1900.0,0.000195,7]
[351844472,1738815038298,-287.16,0.00019565,2]
[351844473,1738815038309,-1003.68142454,0.00019599,2]
[351844474,1738815038319,-2900.0,0.000196,7]
[351844475,1738815038329,-150.0,0.00019683,2]
[351844476,1738815038339,-3000.0,0.000197,2]
[351844477,1738815038349,-3900.0,0.000197,7]
[351844478,1738815038359,-427.29954319,0.00019727,2]
[351844479,1738815038369,-4800.0,0.000198,7]
[351844480,1738815038379,-900.0,0.000199,7]
[351844481,1738815038389,-1554.08876,0.0001999,2]
[351844482,1738815038399,-500.0,0.00020034,2]
[351844483,1738815038409,-1089.042,0.00020036,2]
[351844484,1738815038419,-1622.27466898,0.00020104,2]
[351844485,1738815038428,-1000.0,0.0002018,50]
[351844486,1738815038439,-150.0,0.00020187,2]
[351844487,1738815038448,-2087.7325203,0.00020189,2]
[351844488,1738815038457,-4807.2504605,0.00020189,2]
[351844489,1738815038467,-232.0871436,0.00020189,2]
[351844491,1738815038476,-715.10415987,0.00020189,2]
[351844493,1738815038485,-1000.0,0.00020195,2]
[351844494,1738815038494,-1000.0,0.00020195,2]
[351844495,1738815038504,-333.4934,0.00020195,2]
[351844496,1738815038513,-2000.0,0.00020195,2]
[351844497,1738815038527,-2000.0,0.00020195,2]
[351844498,1738815038542,-2000.0,0.00020195,2]
[351844499,1738815038552,-2009.2476,0.00020195,2]
[351844500,1738815038563,-2720.45012832,0.00020196,10]
[351844501,1738815038574,-151.0,0.00020197,2]
[351844503,1738815038584,-151.0,0.00020197,2]
[351844505,1738815038594,-1008.0,0.00020197,2]
[351844507,1738815038605,-1000.0,0.00020197,2]
[351844509,1738815038614,-1000.0,0.00020197,2]
[351844511,1738815038624,-1000.0,0.00020197,2]
[351844513,1738815038633,-1000.0,0.00020197,2]
[351844515,1738815038643,-1000.0,0.00020197,2]
[351844517,1738815038653,-1000.0,0.00020197,2]
[351844519,1738815038662,-1000.0,0.00020197,2]
[351844521,1738815038672,-1000.0,0.00020197,2]
[351844523,1738815038682,-1000.0,0.00020197,2]
[351844525,1738815038691,-1000.0,0.00020197,2]
[351844527,1738815038700,-1000.0,0.00020197,2]
[351844529,1738815038709,-1000.0,0.00020197,2]
[351844531,1738815038719,-1000.0,0.00020197,2]
[351844533,1738815038728,-1000.0,0.00020197,2]
[351844535,1738815038737,-1000.0,0.00020197,2]
[351844537,1738815038747,-1000.0,0.00020197,2]
[351844539,1738815038756,-1000.0,0.00020197,2]
[351844540,1738815038765,-1000.0,0.00020197,2]
[351844543,1738815038778,-1000.0,0.00020197,2]
[351844544,1738815038787,-1000.0,0.00020197,2]
[351844545,1738815038797,-1000.0,0.00020197,2]
[351844546,1738815038806,-1000.0,0.00020197,2]
[351844547,1738815038816,-1000.0,0.00020197,2]
[351844548,1738815038826,-1000.0,0.00020197,2]
[351844549,1738815038835,-1000.0,0.00020197,2]
[351844550,1738815038844,-1000.0,0.00020197,2]
[351844551,1738815038854,-1000.0,0.00020197,2]
[351844552,1738815038863,-1000.0,0.00020197,2]
[351844553,1738815038873,-1000.0,0.00020197,2]
[351844554,1738815038883,-1000.0,0.00020197,2]
[351844555,1738815038893,-1000.0,0.00020197,2]
[351844556,1738815038902,-1000.0,0.00020197,2]
[351844557,1738815038911,-1000.0,0.00020197,2]
[351844558,1738815038920,-1000.0,0.00020197,2]
[351844559,1738815038930,-1000.0,0.00020197,2]
[351844560,1738815038939,-1000.0,0.00020197,2]
[351844561,1738815038949,-1000.0,0.00020197,2]
[351844562,1738815038958,-1000.0,0.00020197,2]
[351844563,1738815038967,-1000.0,0.00020197,2]
[351844564,1738815038977,-1000.0,0.00020197,2]
[351844565,1738815038986,-1000.0,0.00020197,2]
[351844566,1738815038995,-1000.0,0.00020197,2]
[351844567,1738815039006,-1000.0,0.00020197,2]
[351844568,1738815039015,-1000.0,0.00020197,2]
[351844569,1738815039025,-579.0,0.00020197,2]
[351844570,1738815039035,-635.4,0.000202,2]
[351844571,1738815039045,-666.0,0.00020203,2]
[351844572,1738815039055,-666.0,0.00020203,2]
[351844573,1738815039064,-500.0,0.00020203,2]
[351844574,1738815039074,-2500.0,0.00020203,120]
[351844575,1738815039084,-2500.0,0.00020203,120]
[351844576,1738815039094,-2500.0,0.00020203,120]
[351844577,1738815039103,-2500.0,0.00020203,120]
[351844578,1738815039113,-201.08611186,0.00020203,120]
[351844579,1738815039122,-500.0,0.00020203,3]
[351844580,1738815039131,-500.0,0.00020203,3]
[351844581,1738815039141,-500.0,0.00020203,3]
[351844582,1738815039150,-500.0,0.00020203,3]
[351844583,1738815039160,-500.0,0.00020203,3]
[351844584,1738815039170,-500.0,0.00020203,3]
[351844585,1738815039180,-500.0,0.00020203,3]
[351844586,1738815039189,-500.0,0.00020203,3]
[351844587,1738815039199,-500.0,0.00020203,3]
[351844588,1738815039209,-500.0,0.00020203,3]
[351844589,1738815039219,-500.0,0.00020203,3]
[351844590,1738815039228,-500.0,0.00020203,3]
[351844591,1738815039238,-500.0,0.00020203,3]
[351844592,1738815039247,-500.0,0.00020203,3]
[351844593,1738815039256,-500.0,0.00020203,3]
[351844594,1738815039266,-500.0,0.00020203,3]
[351844595,1738815039278,-500.0,0.00020203,3]
[351844596,1738815039288,-500.0,0.00020203,3]
[351844597,1738815039297,-500.0,0.00020203,3]
[351844598,1738815039307,-625.55838115,0.00020203,3]
[351844599,1738815039316,-1158.46,0.00020203,2]
[351844600,1738815039326,-220.74950132,0.00020203,3]
[351844601,1738815039335,-271.61864516,0.00020203,3]
[351844602,1738815039345,-500.0,0.00020203,3]
[351844603,1738815039355,-184.86,0.00020203,3]
[351844604,1738815039364,-500.0,0.00020203,3]
[351844605,1738815039373,-500.0,0.00020203,3]
[351844606,1738815039383,-500.0,0.00020203,3]
[351844607,1738815039393,-484.54086266,0.00020203,3]
[351844608,1738815039403,-735.0,0.00020203,2]
[351844609,1738815039413,-239.65741907,0.00020203,2]
[351844610,1738815039422,-55102.24729813,0.00020203,2]
[351844611,1738815039433,-2617457.92589469,0.00020204,30]
[351844612,1738815039442,-253960.10590208,0.00020204,30]
[351844613,1738815039452,-344.57571497,0.00020204,2]
[351844614,1738815039463,-208923.98720171,0.00020204,30]
[351844615,1738815039473,-211.32816376,0.00020204,7]
[351844616,1738815039482,-7796.01352901,0.00020204,7]
[351844617,1738815039492,-611.30637652,0.00020204,6]
[351844618,1738815039501,-1011.56069984,0.00020204,15]
[351844619,1738815039511,-1404.00285747,0.00020204,10]
[351844620,1738815039521,-753.49145334,0.00020204,2]
[351844621,1738815039534,-1504.47791487,0.00020204,2]
[351844622,1738815039544,-240.060328,0.00020204,120]
[351844623,1738815039554,-352588.10575449,0.00020204,2]
[351844624,1738815039564,-1018.54641601,0.00020204,2]
[351844625,1738815039575,-5128.57790526,0.00020204,2]
[351844626,1738815039584,-597.40569257,0.00020204,120]
[351844627,1738815039594,-523.66075218,0.00020204,7]
[351844628,1738815039605,-2428.98300203,0.00020204,2]
[351844629,1738815039614,-300.0,0.00020204,15]
[351844630,1738815039624,-80061.35469033,0.00020204,2]
[351844631,1738815039634,-2384.45323533,0.00020204,120]
[351844632,1738815039643,-213296.66141252,0.00020204,2]
[351844633,1738815039653,-150.29021254,0.00020204,2]
[351844634,1738815039662,-964.57548056,0.00020204,5]
[351844635,1738815039673,-5019.91608533,0.00020204,2]
[351844636,1738815039683,-359.27034488,0.00020204,90]
[351844637,1738815039692,-2241.95433663,0.00020204,14]
[351844638,1738815039702,-246.5060834,0.00020204,2]
[351844639,1738815039711,-162.64703198,0.00020204,2]
[351844640,1738815039721,-861.94074535,0.00020204,5]
[351844641,1738815039731,-1248.41721295,0.00020204,2]
[351844642,1738815039740,-216.30019167,0.00020204,60]
[351844643,1738815039751,-7637.89906736,0.00020204,2]
[351844644,1738815039760,-51999.95623602,0.00020204,30]
[351844646,1738815039884,-154.68374535,0.00020204,120]
[351844647,1738815039894,-22890.67373302,0.00020204,120]
[351844648,1738815039904,-1223.06178881,0.00020204,15]
[351844649,1738815039913,-2210.0095629,0.00020204,10]
[351844650,1738815039923,-180.25350951,0.00020204,2]
[351844651,1738815039934,-155.10771478,0.00020204,120]
[351844652,1738815039944,-1030.47249584,0.00020204,2]
[351844653,1738815039954,-584.65623675,0.00020204,5]
[351844654,1738815039964,-9600.11413979,0.00020204,2]
[351844655,1738815039974,-588.5255122,0.00020204,2]
[351844656,1738815039984,-213606.78297013,0.00020204,120]
[351844657,1738815039994,-9141.67390127,0.00020204,2]
[351844658,1738815040004,-1297.78683907,0.00020204,2]
[351844659,1738815040014,-2240.16425063,0.00020204,10]
[351844660,1738815040027,-1000.0,0.00020204,10]
[351844661,1738815040039,-3384.93188283,0.00020204,2]
[351844662,1738815040050,-20584.14704769,0.00020204,7]
[351844663,1738815040060,-4363.79546629,0.00020204,7]
[351844664,1738815040071,-204.7647857,0.00020204,30]
[351844665,1738815040081,-22554.6273424,0.00020204,2]
[351844666,1738815040091,-12702.3309951,0.00020204,2]
[351844667,1738815040101,-1901.61643891,0.00020204,2]
[351844668,1738815040111,-182.16891157,0.00020204,2]
[351844669,1738815040121,-14690.23526739,0.00020204,3]
[351844670,1738815040131,-643.0,0.00020204,2]
[351844671,1738815040142,-5261.56802708,0.00020204,4]
[351844672,1738815040153,-960.298184,0.00020204,2]
[351844673,1738815040162,-15282.59913957,0.00020204,10]
[351844674,1738815040172,-9544.14951096,0.00020204,2]
[351844675,1738815040182,-176.58655675,0.00020204,120]
[351844676,1738815040191,-500.0,0.00020204,10]
[351844677,1738815040201,-18679.66655984,0.00020204,5]
[351844678,1738815040210,-25088.09099817,0.00020204,2]
[351844679,1738815040220,-12742.16250065,0.00020204,30]
[351844680,1738815040230,-567.18618867,0.00020204,2]
[351844681,1738815040239,-51400.49168581,0.00020204,30]
[351844682,1738815040248,-1818.74870361,0.00020204,2]
[351844683,1738815040258,-3211.49609629,0.00020204,2]
[351844684,1738815040267,-152.81188409,0.00020204,2]
[351844685,1738815040280,-173.65455112,0.00020204,2]
[351844686,1738815040289,-60991.8876754,0.00020204,10]
[351844687,1738815040299,-10562.939551,0.00020204,15]
[351844688,1738815040309,-7016.27731878,0.00020204,2]
[351844689,1738815040318,-51048.49993275,0.00020204,7]
[351844690,1738815040328,-550.0,0.00020204,2]
[351844691,1738815040338,-1452.01030672,0.00020204,2]
[351844692,1738815040347,-998.13374939,0.00020204,2]
[351844693,1738815040357,-1022.18585864,0.00020204,7]
[351844694,1738815040367,-945.2357834,0.00020204,2]
[351844695,1738815040377,-10599.82809332,0.00020204,2]
[351844696,1738815040387,-163923.57968678,0.00020204,2]
[351844697,1738815040402,-450.95372915,0.00020204,2]
[351844698,1738815040414,-3660.81258208,0.00020204,2]
[351844699,1738815040424,-14796.92164044,0.00020204,2]
[351844700,1738815040433,-871.28308498,0.00020204,120]
[351844701,1738815040443,-226.63331551,0.00020204,2]
[351844702,1738815040452,-171.99626928,0.00020204,2]
[351844703,1738815040462,-1266.96000925,0.00020204,4]
[351844704,1738815040472,-6000.0,0.00020204,2]
[351844705,1738815040482,-371.62625818,0.00020204,2]
[351844706,1738815040492,-1455.66927472,0.00020204,2]
[351844707,1738815040502,-1023.00620287,0.00020204,2]
[351844708,1738815040512,-457.86578171,0.00020204,7]
[351844709,1738815040525,-8549.55153293,0.00020204,2]
[351844710,1738815040536,-898.59098443,0.00020204,30]
[351844711,1738815040546,-95320.85598804,0.00020204,2]
[351844712,1738815040555,-1118.89437312,0.00020204,120]
[351844713,1738815040567,-445.38809776,0.00020204,2]
[351844714,1738815040576,-21069.0849391,0.00020204,2]
[351844715,1738815040585,-1056.83008567,0.00020204,2]
[351844716,1738815040595,-6243.72798262,0.00020204,120]
[351844717,1738815040605,-2500.0,0.00020204,2]
[351844718,1738815040615,-573.76443544,0.00020204,2]
[351844720,1738815040624,-180774.26174726,0.00020204,3]
[351844722,1738815040633,-338.93791563,0.00020204,2]
[351844724,1738815040643,-1099.99508801,0.00020204,2]
[351844726,1738815040652,-533.76170768,0.00020204,2]
[351844728,1738815040662,-299.18417331,0.00020204,2]
[351844730,1738815040671,-903.56517586,0.00020204,2]
[351844732,1738815040681,-4774.64170293,0.00020204,60]
[351844734,1738815040692,-476.99017246,0.00020204,2]
[351844736,1738815040702,-15441.82331404,0.00020204,2]
[351844738,1738815040710,-233.33946775,0.00020204,120]
[351844740,1738815040720,-168.61222096,0.00020204,2]
[351844742,1738815040730,-227.39643828,0.00020204,2]
[351844744,1738815040739,-155255.70140749,0.00020204,7]
[351844752,1738815040817,-14346.66954172,0.00020204,7]
[351844754,1738815040829,-1079.34910173,0.00020204,7]
[351844759,1738815040860,-1121.36,0.00020204,7]
[351844761,1738815040872,-2398.25946899,0.00020204,7]
[351844763,1738815040883,-1052.0806342,0.00020204,7]
[351844765,1738815040894,-1190.30533154,0.00020204,7]
[351844767,1738815040905,-1981.56679811,0.00020204,7]
[351844769,1738815040916,-4019.19706233,0.00020204,7]
[351844771,1738815040926,-1570.93066698,0.00020204,2]
[351844773,1738815040935,-4829.87227069,0.00020204,2]
[351844776,1738815040947,-803.98166143,0.00020204,2]
[351844922,1738815043123,-2700.0,0.00020204,2]
[351844930,1738815043230,-1050.57137757,0.00020204,2]
[351844931,1738815043284,-269.68911155,0.00020204,2]
[351844932,1738815043446,-506.99498589,0.00020204,2]
[351844933,1738815043457,-619.819988,0.00020204,2]
[351844934,1738815043468,-1574.25175045,0.00020204,2]
[351845072,1738815046197,-658.0,0.00020203,2]
[351845073,1738815046207,-350.3263543,0.00020204,2]
[351845074,1738815046220,-18331.77,0.00020204,2]
[351845075,1738815046371,-4930.30487223,0.00020204,2]
[351845076,1738815046426,-5981.6881696,0.00020204,2]
[351845114,1738815171031,1618.6527,8.973e-05,2]
[351845115,1738815283829,-1168.8339,8.699e-05,2]
[351845116,1738815283852,-1144.0366,8.699e-05,2]
[351845117,1738815283873,-454.6772,8.699e-05,2]
[351845118,1738815283896,-473.1402,8.973e-05,2]
[351845119,1738815283918,-1272.73009358,9.932e-05,2]
[351845120,1738815283940,-1272.73009358,9.951e-05,2]
[351845121,1738815283962,-1272.73009358,9.966e-05,2]
[351845122,1738815283984,-1272.73009358,9.97e-05,2]
[351845123,1738815955130,16351.93486337,0.00011311,2]
[351845125,1738816028024,521.71974507,0.00011995,2]
[351845127,1738816124477,862.70058701,8.784e-05,2]
[351845135,1738816232278,-550.0,0.00013,2]
[351845136,1738816232288,-150.0,0.000143,2]
[351845137,1738816232297,-150.0,0.000143,2]
[351845138,1738816232307,-150.0,0.00014601,2]
[351845139,1738816232316,-600.0,0.00015,2]
[351845140,1738816232326,-4577.48633137,0.00015,2]
[351845141,1738816232335,-150.0,0.00016199,2]
[351845142,1738816232345,-375.41659732,0.000162,2]
[351845143,1738816232359,-10183.0,0.000162,2]
[351845144,1738816232370,-394.73482766,0.000162,2]
[351845145,1738816232393,-11490.886551,0.000162,2]
[351845146,1738816232405,-501.25,0.000162,2]
[351845147,1738816232453,-624.0,0.000162,2]
[351845148,1738816232465,-315.0,0.000162,2]
[351845149,1738816232477,-252.5,0.000162,2]
[351845150,1738816232489,-12652.53927538,0.000162,2]
[351845151,1738816232500,-2583.62504424,0.000162,2]
[351845152,1738816232515,-4019.2,0.000162,2]
[351845153,1738816232528,-53469.04674083,0.000162,2]
[351845154,1738816232539,-503.4735659,0.000162,2]
[351845155,1738816232551,-6338.60000004,0.000162,2]
[351845156,1738816232563,-5001.56209556,0.000162,2]
[351845157,1738816232627,-100250.00000131,0.000162,2]
[351845171,1738816238112,-11341.45376007,0.000162,2]
[351845175,1738816238174,-11615.01556835,0.000162,2]
[351845176,1738816238186,-4969.168468,0.000162,2]
[351845177,1738816238288,-189454.22642733,0.000162,2]
[351845178,1738816238298,-355.62,0.00016801,2]
[351845179,1738816238307,-650.0,0.00017,2]
[351845180,1738816238317,-250.0,0.00017177,2]
[351845181,1738816238326,-726.39,0.00018532,2]
[351845182,1738816238336,-179.21,0.00018551,2]
[351845183,1738816238346,-1000.0,0.00018568,2]
[351845184,1738816238355,-183.96,0.00018666,2]
[351845185,1738816238365,-351.56,0.00018691,2]
[351845186,1738816238375,-200.0,0.00018719,2]
[351845187,1738816238384,-281.76,0.00018749,2]
[351845188,1738816238394,-250.0,0.00018834,2]